fUST/lending_fUST_20250708
["ID","MTS","AMOUNT","RATE_DAILY","PERIOD"]
[370361423,1751980242989,-278.4437189,0.00019178,2]
[370361425,1751980242998,-151.0,0.00019178,2]
[370361427,1751980243008,-460.0,0.00019178,2]
[370361429,1751980243017,-206.96754,0.00019178,2]
[370361432,1751980243027,-460.0,0.00019178,2]
[370361434,1751980243037,-460.0,0.00019178,2]
[370361436,1751980243046,-460.0,0.00019178,2]
[370361438,1751980243056,-151.0,0.00019178,2]
[370361440,1751980243066,-151.0,0.00019178,2]
[370361442,1751980243076,-460.0,0.00019178,2]
[370361444,1751980243086,-151.0,0.00019178,2]
[370361446,1751980243096,-151.0,0.00019178,2]
[370361448,1751980243105,-460.0,0.00019178,2]
[370361450,1751980243116,-460.0,0.00019178,2]
[370361452,1751980243126,-460.0,0.00019178,2]
[370361453,1751980243136,-460.0,0.00019178,2]
[370361454,1751980243146,-151.0,0.00019178,2]
[370361455,1751980243156,-151.0,0.00019178,2]
[370361456,1751980243165,-460.0,0.00019178,2]
[370361457,1751980243175,-460.0,0.00019178,2]
[370361458,1751980243184,-169.70623844,0.00019178,2]
[370361459,1751980243194,-460.0,0.00019178,2]
[370361460,1751980243203,-460.0,0.00019178,2]
[370361461,1751980243213,-460.0,0.00019178,2]
[370361462,1751980243223,-491.71760817,0.00019178,2]
[370361463,1751980243232,-460.0,0.00019178,2]
[370361464,1751980243242,-460.0,0.00019178,2]
[370361465,1751980243251,-583.97956685,0.00019178,2]
[370361466,1751980243261,-460.0,0.00019178,2]
[370361467,1751980243270,-460.0,0.00019178,2]
[370361468,1751980243279,-460.0,0.00019178,2]
[370361469,1751980243288,-460.0,0.00019178,2]
[370361470,1751980243298,-151.0,0.00019178,2]
[370361471,1751980243307,-151.0,0.00019178,2]
[370361472,1751980243317,-151.0,0.00019178,2]
[370361473,1751980243326,-151.0,0.00019178,2]
[370361474,1751980243335,-639.31,0.00019178,2]
[370361475,1751980243345,-151.0,0.00019178,2]
[370361476,1751980243355,-151.0,0.00019178,2]
[370361477,1751980243365,-460.0,0.00019178,2]
[370361478,1751980243374,-461.17921217,0.00019178,2]
[370361479,1751980243383,-460.0,0.00019178,2]
[370361480,1751980243393,-620.94,0.00019178,2]
[370361481,1751980243403,-401.60632949,0.00019178,2]
[370361482,1751980243412,-316.79523858,0.00019178,2]
[370361483,1751980243421,-151.0,0.00019178,2]
[370361484,1751980243431,-151.0,0.00019178,2]
[370361485,1751980243440,-460.0,0.00019178,2]
[370361486,1751980243449,-460.0,0.00019178,2]
[370361487,1751980243458,-460.0,0.00019178,2]
[370361488,1751980243468,-500.0,0.00019178,2]
[370361489,1751980243477,-460.0,0.00019178,2]
[370361490,1751980243487,-460.0,0.00019178,2]
[370361491,1751980243496,-460.0,0.00019178,2]
[370361492,1751980243505,-296.145426,0.00019178,2]
[370361493,1751980243515,-460.0,0.00019178,2]
[370361494,1751980243524,-460.0,0.00019178,2]
[370361495,1751980243534,-460.0,0.00019178,2]
[370361496,1751980243543,-722.7,0.00019178,2]
[370361497,1751980243553,-151.0,0.00019178,2]
[370361498,1751980243562,-151.0,0.00019178,2]
[370361499,1751980243572,-519.02,0.00019178,2]
[370361500,1751980243582,-160.82114201,0.00019178,2]
[370361501,1751980243591,-867.48,0.00019178,2]
[370361502,1751980243602,-460.0,0.00019178,2]
[370361503,1751980243612,-569.92999331,0.00019178,2]
[370361504,1751980243622,-460.0,0.00019178,2]
[370361505,1751980243632,-460.0,0.00019178,2]
[370361506,1751980243641,-460.0,0.00019178,2]
[370361507,1751980243651,-572.46,0.00019178,2]
[370361508,1751980243660,-460.0,0.00019178,2]
[370361509,1751980243670,-1112.82,0.00019178,2]
[370361510,1751980243679,-460.0,0.00019178,2]
[370361511,1751980243688,-151.0,0.00019178,2]
[370361512,1751980243699,-474.42656015,0.00019178,2]
[370361513,1751980243710,-430.0,0.00019178,2]
[370361514,1751980243719,-460.0,0.00019178,2]
[370361515,1751980243728,-460.0,0.00019178,2]
[370361516,1751980243738,-460.0,0.00019178,2]
[370361517,1751980243747,-593.64795834,0.00019178,2]
[370361518,1751980243757,-460.0,0.00019178,2]
[370361519,1751980243766,-460.0,0.00019178,2]
[370361520,1751980243776,-460.0,0.00019178,2]
[370361521,1751980243786,-1145.56,0.00019178,2]
[370361522,1751980243796,-460.0,0.00019178,2]
[370361523,1751980243805,-460.0,0.00019178,2]
[370361524,1751980243818,-460.0,0.00019178,2]
[370361525,1751980243827,-460.0,0.00019178,2]
[370361526,1751980243837,-460.0,0.00019178,2]
[370361527,1751980243846,-460.0,0.00019178,2]
[370361528,1751980243858,-692.45,0.00019178,2]
[370361529,1751980243868,-460.0,0.00019178,2]
[370361530,1751980243878,-460.0,0.00019178,2]
[370361531,1751980243889,-460.0,0.00019178,2]
[370361532,1751980243899,-460.0,0.00019178,2]
[370361533,1751980243908,-493.21712756,0.00019178,2]
[370361534,1751980243918,-460.0,0.00019178,2]
[370361535,1751980243928,-460.0,0.00019178,2]
[370361536,1751980243937,-460.0,0.00019178,2]
[370361537,1751980243947,-460.0,0.00019178,2]
[370361538,1751980243957,-1153.15,0.00019178,2]
[370361539,1751980243967,-1196.26,0.00019178,2]
[370361540,1751980243977,-151.0,0.00019178,2]
[370361541,1751980243988,-500.81235246,0.00019178,2]
[370361542,1751980243998,-460.0,0.00019178,2]
[370361543,1751980244009,-460.0,0.00019178,2]
[370361544,1751980244019,-460.0,0.00019178,2]
[370361545,1751980244030,-675.01,0.00019178,2]
[370361546,1751980244039,-460.0,0.00019178,2]
[370361547,1751980244049,-460.0,0.00019178,2]
[370361548,1751980244059,-460.0,0.00019178,2]
[370361549,1751980244069,-178.22244555,0.00019178,2]
[370361550,1751980244079,-531.44,0.00019178,2]
[370361551,1751980244088,-460.0,0.00019178,2]
[370361552,1751980244098,-524.61242873,0.00019178,2]
[370361553,1751980244107,-460.0,0.00019178,2]
[370361554,1751980244117,-460.0,0.00019178,2]
[370361555,1751980244127,-460.0,0.00019178,2]
[370361556,1751980244136,-460.0,0.00019178,2]
[370361557,1751980244146,-460.0,0.00019178,2]
[370361558,1751980244156,-460.0,0.00019178,2]
[370361559,1751980244166,-460.0,0.00019178,2]
[370361560,1751980244176,-460.0,0.00019178,2]
[370361561,1751980244185,-460.0,0.00019178,2]
[370361562,1751980244195,-460.0,0.00019178,2]
[370361563,1751980244204,-460.0,0.00019178,2]
[370361564,1751980244214,-2469.77,0.00019178,2]
[370361565,1751980244224,-151.0,0.00019178,2]
[370361566,1751980244234,-460.0,0.00019178,2]
[370361567,1751980244243,-460.0,0.00019178,2]
[370361568,1751980244253,-1956.75,0.00019178,2]
[370361569,1751980244263,-460.0,0.00019178,2]
[370361570,1751980244272,-460.0,0.00019178,2]
[370361571,1751980244281,-538.23191412,0.00019178,2]
[370361572,1751980244290,-460.0,0.00019178,2]
[370361573,1751980244299,-460.0,0.00019178,2]
[370361574,1751980244308,-460.0,0.00019178,2]
[370361575,1751980244318,-460.0,0.00019178,2]
[370361576,1751980244326,-460.0,0.00019178,2]
[370361577,1751980244336,-151.0,0.00019178,2]
[370361578,1751980244473,-151.0,0.00019178,2]
[370361579,1751980244484,-460.0,0.00019178,2]
[370361580,1751980244493,-151.0,0.00019178,2]
[370361581,1751980244503,-460.0,0.00019178,2]
[370361582,1751980244512,-474.48766616,0.00019178,2]
[370361583,1751980244520,-460.0,0.00019178,2]
[370361584,1751980244530,-460.0,0.00019178,2]
[370361585,1751980244539,-7424.3,0.00019178,2]
[370361586,1751980244549,-151.0,0.00019178,2]
[370361587,1751980244559,-460.0,0.00019178,2]
[370361588,1751980244568,-179.745313,0.00019178,2]
[370361589,1751980244577,-460.0,0.00019178,2]
[370361590,1751980244588,-4592.02,0.00019178,2]
[370361591,1751980244597,-460.0,0.00019178,2]
[370361592,1751980244607,-460.0,0.00019178,2]
[370361593,1751980244617,-2379.75,0.00019178,2]
[370361594,1751980244626,-460.0,0.00019178,2]
[370361595,1751980244635,-151.0,0.00019178,2]
[370361596,1751980244645,-460.0,0.00019178,2]
[370361597,1751980244654,-460.0,0.00019178,2]
[370361598,1751980244664,-1316.67,0.00019178,2]
[370361599,1751980244674,-1347.81,0.00019178,2]
[370361600,1751980244684,-460.0,0.00019178,2]
[370361601,1751980244694,-460.0,0.00019178,2]
[370361602,1751980244703,-460.0,0.00019178,2]
[370361603,1751980244714,-460.0,0.00019178,2]
[370361604,1751980244723,-750.18,0.00019178,2]
[370361605,1751980244733,-460.0,0.00019178,2]
[370361606,1751980244744,-712.24,0.00019178,2]
[370361607,1751980244753,-460.0,0.00019178,2]
[370361608,1751980244763,-460.0,0.00019178,2]
[370361609,1751980244773,-469.10159919,0.00019178,2]
[370361610,1751980244783,-460.0,0.00019178,2]
[370361611,1751980244793,-460.0,0.00019178,2]
[370361612,1751980244803,-2174.39,0.00019178,2]
[370361613,1751980244816,-460.0,0.00019178,2]
[370361614,1751980244826,-1257.48,0.00019178,2]
[370361615,1751980244836,-460.0,0.00019178,2]
[370361616,1751980244846,-624.19,0.00019178,2]
[370361617,1751980244856,-2807.16,0.00019178,2]
[370361618,1751980244867,-460.0,0.00019178,2]
[370361619,1751980244876,-460.0,0.00019178,2]
[370361620,1751980244886,-460.0,0.00019178,2]
[370361621,1751980244896,-460.0,0.00019178,2]
[370361622,1751980244905,-5458.98,0.00019178,2]
[370361623,1751980244914,-460.0,0.00019178,2]
[370361624,1751980244923,-4480.24,0.00019178,2]
[370361625,1751980244932,-460.0,0.00019178,2]
[370361626,1751980244942,-838.39,0.00019178,2]
[370361627,1751980244951,-460.0,0.00019178,2]
[370361628,1751980244960,-1224.9,0.00019178,2]
[370361629,1751980244969,-460.0,0.00019178,2]
[370361630,1751980244979,-460.0,0.00019178,2]
[370361631,1751980244988,-460.0,0.00019178,2]
[370361632,1751980244997,-638.45,0.00019178,2]
[370361633,1751980245007,-460.0,0.00019178,2]
[370361634,1751980245016,-2179.89,0.00019178,2]
[370361635,1751980245026,-460.0,0.00019178,2]
[370361637,1751980245035,-495.95,0.00019178,2]
[370361638,1751980245044,-460.0,0.00019178,2]
[370361639,1751980245054,-682.99,0.00019178,2]
[370361640,1751980245063,-460.0,0.00019178,2]
[370361641,1751980245072,-151.0,0.00019178,2]
[370361642,1751980245082,-907.3,0.00019178,2]
[370361643,1751980245092,-1061.24,0.00019178,2]
[370361644,1751980245101,-765.59,0.00019178,2]
[370361645,1751980245111,-460.0,0.00019178,2]
[370361646,1751980245122,-460.0,0.00019178,2]
[370361647,1751980245131,-1000.69,0.00019178,2]
[370361648,1751980245140,-460.0,0.00019178,2]
[370361649,1751980245150,-460.0,0.00019178,2]
[370361650,1751980245159,-460.0,0.00019178,2]
[370361651,1751980245168,-881.1,0.00019178,2]
[370361652,1751980245177,-492.57325781,0.00019178,2]
[370361653,1751980245187,-460.0,0.00019178,2]
[370361654,1751980245196,-438.26491176,0.00019178,2]
[370361655,1751980245206,-460.0,0.00019178,2]
[370361656,1751980245215,-460.0,0.00019178,2]
[370361657,1751980245224,-460.0,0.00019178,2]
[370361658,1751980245234,-460.0,0.00019178,2]
[370361659,1751980245244,-460.0,0.00019178,2]
[370361660,1751980245254,-460.0,0.00019178,2]
[370361661,1751980245263,-460.0,0.00019178,2]
[370361662,1751980245273,-4484.3,0.00019178,2]
[370361663,1751980245282,-460.0,0.00019178,2]
[370361664,1751980245291,-460.0,0.00019178,2]
[370361665,1751980245300,-460.0,0.00019178,2]
[370361666,1751980245311,-460.0,0.00019178,2]
[370361667,1751980245320,-460.0,0.00019178,2]
[370361668,1751980245329,-488.78,0.00019178,2]
[370361669,1751980245339,-460.0,0.00019178,2]
[370361671,1751980245348,-151.0,0.00019178,2]
[370361672,1751980245357,-151.0,0.00019178,2]
[370361673,1751980245368,-460.0,0.00019178,2]
[370361674,1751980245377,-460.0,0.00019178,2]
[370361675,1751980245386,-460.0,0.00019178,2]
[370361676,1751980245395,-460.0,0.00019178,2]
[370361678,1751980245404,-460.0,0.00019178,2]
[370361680,1751980245414,-477.86,0.00019178,2]
[370361681,1751980245423,-488.48,0.00019178,2]
[370361682,1751980245432,-5816.49,0.00019178,2]
[370361683,1751980245441,-460.0,0.00019178,2]
[370361684,1751980245451,-460.0,0.00019178,2]
[370361685,1751980245461,-214.96203942,0.00019178,2]
[370361686,1751980245470,-460.0,0.00019178,2]
[370361687,1751980245479,-3570.9,0.00019178,2]
[370361688,1751980245488,-533.73,0.00019178,2]
[370361689,1751980245497,-905.75,0.00019178,2]
[370361690,1751980245507,-2037.22,0.00019178,2]
[370361691,1751980245516,-552.43,0.00019178,2]
[370361692,1751980245525,-863.23,0.00019178,2]
[370361693,1751980245534,-460.0,0.00019178,2]
[370361694,1751980245543,-462.7614612,0.00019178,2]
[370361695,1751980245551,-460.0,0.00019178,2]
[370361696,1751980245561,-460.0,0.00019178,2]
[370361697,1751980245570,-460.0,0.00019178,2]
[370361698,1751980245580,-541.05,0.00019178,2]
[370361699,1751980245589,-3724.52,0.00019178,2]
[370361700,1751980245598,-460.0,0.00019178,2]
[370361701,1751980245608,-985.4,0.00019178,2]
[370361702,1751980245619,-1098.25,0.00019178,2]
[370361703,1751980245629,-460.0,0.00019178,2]
[370361704,1751980245638,-869.89,0.00019178,2]
[370361705,1751980245647,-460.0,0.00019178,2]
[370361706,1751980245657,-500.11,0.00019178,2]
[370361707,1751980245666,-460.0,0.00019178,2]
[370361708,1751980245675,-460.0,0.00019178,2]
[370361709,1751980245685,-1868.2,0.00019178,2]
[370361710,1751980245695,-460.0,0.00019178,2]
[370361711,1751980245704,-460.0,0.00019178,2]
[370361712,1751980245714,-673.39,0.00019178,2]
[370361713,1751980245723,-2181.02,0.00019178,2]
[370361714,1751980245733,-460.0,0.00019178,2]
[370361715,1751980245742,-576.61,0.00019178,2]
[370361716,1751980245751,-638.63,0.00019178,2]
[370361717,1751980245760,-8636.29,0.00019178,2]
[370361718,1751980245769,-3652.4,0.00019178,2]
[370361719,1751980245779,-978.78,0.00019178,2]
[370361720,1751980245788,-472.14063789,0.00019178,2]
[370361721,1751980245797,-460.0,0.00019178,2]
[370361722,1751980245805,-460.0,0.00019178,2]
[370361723,1751980245815,-1063.82,0.00019178,2]
[370361724,1751980245826,-551.53,0.00019178,2]
[370361725,1751980245836,-460.0,0.00019178,2]
[370361726,1751980245846,-1181.32,0.00019178,2]
[370361727,1751980245856,-460.0,0.00019178,2]
[370361728,1751980245871,-460.0,0.00019178,2]
[370361729,1751980245881,-3681.24,0.00019178,2]
[370361730,1751980245891,-460.0,0.00019178,2]
[370361731,1751980245901,-460.0,0.00019178,2]
[370361732,1751980245910,-956.38,0.00019178,2]
[370361733,1751980245920,-618.71,0.00019178,2]
[370361734,1751980245930,-151.0,0.00019178,2]
[370361735,1751980245939,-151.0,0.00019178,2]
[370361736,1751980245949,-799.69,0.00019178,2]
[370361737,1751980245958,-151.0,0.00019178,2]
[370361738,1751980245968,-151.0,0.00019178,2]
[370361739,1751980245977,-158.299192,0.00019178,2]
[370361740,1751980245987,-5435.90425098,0.00019191,2]
[370361741,1751980245997,-733.2758648,0.000192,2]
[370361742,1751980246007,-151.0,0.00019205,2]
[370361743,1751980246016,-178.092,0.00019251,2]
[370361744,1751980246026,-601.758,0.00019251,2]
[370361745,1751980246036,-1390.320449,0.00019255,2]
[370361746,1751980246046,-160.0,0.00019277,2]
[370361747,1751980246056,-214.10276668,0.00019278,2]
[370361748,1751980246065,-215.2437778,0.00019278,2]
[370361749,1751980246074,-230.51100374,0.00019278,2]
[370361750,1751980246084,-160.0,0.00019278,2]
[370361751,1751980246093,-848.40570879,0.00019278,2]
[370361752,1751980246103,-837.89306043,0.00019278,2]
[370361753,1751980246112,-160.0,0.00019278,2]
[370361754,1751980246122,-12586.7184932,0.00019278,2]
[370361755,1751980246131,-160.0,0.00019278,2]
[370361756,1751980246143,-151.0,0.00019278,2]
[370361757,1751980246152,-151.0,0.00019291,2]
[370361758,1751980246161,-151.0,0.00019291,2]
[370361759,1751980246171,-151.0,0.00019291,2]
[370361760,1751980246180,-151.0,0.00019291,2]
[370361761,1751980246189,-151.0,0.00019291,2]
[370361762,1751980246199,-151.0,0.00019291,2]
[370361763,1751980246208,-151.0,0.00019291,2]
[370361764,1751980246218,-222.589772,0.00019291,2]
[370361765,1751980246227,-231.879186,0.00019291,2]
[370361766,1751980246236,-151.0,0.00019291,2]
[370361767,1751980246245,-151.0,0.00019291,2]
[370361768,1751980246254,-151.0,0.00019291,2]
[370361769,1751980246264,-151.0,0.00019291,2]
[370361770,1751980246272,-575.9560845,0.000193,2]
[370361771,1751980246282,-151.362799,0.0001931,2]
[370361772,1751980246291,-162.1290201,0.00019315,2]
[370361773,1751980246300,-160.0,0.00019334,3]
[370361774,1751980246310,-151.0,0.00019352,2]
[370361775,1751980246320,-1390.320449,0.00019352,2]
[370361776,1751980246331,-1150.2726152,0.000194,2]
[370361777,1751980246340,-428.6046964,0.000194,2]
[370361778,1751980246350,-242.5976125,0.000194,2]
[370361779,1751980246361,-151.0,0.000194,2]
[370361780,1751980246371,-404.0,0.000194,2]
[370361781,1751980246381,-168.0,0.00019426,2]
[370361782,1751980246391,-151.0,0.0001944,2]
[370361783,1751980246401,-167.065299,0.00019452,2]
[370361784,1751980246410,-151.0,0.00019452,2]
[370361785,1751980246419,-167.065299,0.00019452,2]
[370361786,1751980246429,-155.621467,0.00019452,2]
[370361787,1751980246438,-151.0,0.00019452,2]
[370361788,1751980246447,-151.0,0.00019452,2]
[370361789,1751980246457,-151.0,0.00019452,2]
[370361790,1751980246467,-151.0,0.00019452,2]
[370361791,1751980246477,-151.0,0.00019452,2]
[370361792,1751980246488,-151.0,0.00019452,2]
[370361793,1751980246496,-151.0,0.00019452,2]
[370361794,1751980246503,-460.0,0.00019452,2]
[370361795,1751980246512,-151.0,0.00019452,2]
[370361796,1751980246521,-151.0,0.00019452,2]
[370361797,1751980246531,-460.0,0.00019452,2]
[370361798,1751980246541,-151.0,0.00019452,2]
[370361799,1751980246551,-460.0,0.00019452,2]
[370361800,1751980246560,-227.088005,0.00019452,2]
[370361801,1751980246569,-151.0,0.00019452,2]
[370361802,1751980246579,-152.714907,0.00019452,2]
[370361803,1751980246588,-460.0,0.00019452,2]
[370361804,1751980246598,-151.0,0.00019452,2]
[370361805,1751980246709,-460.0,0.00019452,2]
[370361806,1751980246719,-151.0,0.00019452,2]
[370361807,1751980246729,-460.0,0.00019452,2]
[370361808,1751980246738,-151.0,0.00019452,2]
[370361809,1751980246748,-151.0,0.00019452,2]
[370361810,1751980246757,-151.0,0.00019452,2]
[370361811,1751980246766,-151.0,0.00019452,2]
[370361812,1751980246775,-460.0,0.00019452,2]
[370361813,1751980246784,-167.986866,0.00019452,2]
[370361814,1751980246794,-151.0,0.00019452,2]
[370361815,1751980246803,-151.0,0.00019452,2]
[370361816,1751980246813,-151.0,0.00019452,2]
[370361817,1751980246825,-460.0,0.00019452,2]
[370361818,1751980246834,-2731.41554216,0.00019452,2]
[370361819,1751980246844,-460.0,0.00019452,2]
[370361820,1751980246855,-151.0,0.00019452,2]
[370361821,1751980246865,-151.0,0.00019452,2]
[370361822,1751980246875,-151.0,0.00019452,2]
[370361823,1751980246884,-151.0,0.00019452,2]
[370361824,1751980246896,-151.0,0.00019452,2]
[370361825,1751980246908,-151.0,0.00019452,2]
[370361826,1751980246917,-151.0,0.00019452,2]
[370361827,1751980246926,-151.0,0.00019452,2]
[370361828,1751980246935,-151.0,0.00019452,2]
[370361829,1751980246944,-151.0,0.00019452,2]
[370361830,1751980246953,-151.0,0.00019452,2]
[370361831,1751980246962,-151.0,0.00019452,2]
[370361832,1751980246971,-460.0,0.00019452,2]
[370361833,1751980246981,-151.0,0.00019452,2]
[370361834,1751980246990,-151.0,0.00019452,2]
[370361835,1751980247000,-151.0,0.00019452,2]
[370361836,1751980247009,-151.0,0.00019452,2]
[370361837,1751980247019,-151.0,0.00019452,2]
[370361838,1751980247028,-151.0,0.00019452,2]
[370361839,1751980247037,-460.0,0.00019452,2]
[370361840,1751980247047,-460.0,0.00019452,2]
[370361841,1751980247056,-460.0,0.00019452,2]
[370361842,1751980247065,-151.0,0.00019452,2]
[370361843,1751980247074,-151.0,0.00019452,2]
[370361844,1751980247083,-151.0,0.00019452,2]
[370361845,1751980247093,-460.0,0.00019452,2]
[370361846,1751980247102,-460.0,0.00019452,2]
[370361847,1751980247112,-460.0,0.00019452,2]
[370361848,1751980247121,-220.236511,0.00019452,2]
[370361849,1751980247131,-460.0,0.00019452,2]
[370361850,1751980247140,-460.0,0.00019452,2]
[370361851,1751980247150,-597.41322904,0.00019452,2]
[370361852,1751980247158,-460.0,0.00019452,2]
[370361853,1751980247167,-460.0,0.00019452,2]
[370361854,1751980247176,-508.54,0.00019452,2]
[370361855,1751980247185,-404.73949645,0.00019452,2]
[370361856,1751980247195,-460.0,0.00019452,2]
[370361857,1751980247204,-460.0,0.00019452,2]
[370361858,1751980247213,-460.0,0.00019452,2]
[370361859,1751980247222,-460.0,0.00019452,2]
[370361860,1751980247232,-151.0,0.00019452,2]
[370361861,1751980247241,-151.0,0.00019452,2]
[370361862,1751980247249,-151.0,0.00019452,2]
[370361863,1751980247258,-639.31,0.00019452,2]
[370361864,1751980247266,-293.78943,0.00019452,2]
[370361865,1751980247276,-460.0,0.00019452,2]
[370361866,1751980247286,-460.0,0.00019452,2]
[370361867,1751980247296,-620.94,0.00019452,2]
[370361868,1751980247305,-460.0,0.00019452,2]
[370361869,1751980247314,-460.0,0.00019452,2]
[370361870,1751980247323,-460.0,0.00019452,2]
[370361871,1751980247332,-460.0,0.00019452,2]
[370361872,1751980247342,-460.0,0.00019452,2]
[370361873,1751980247351,-460.0,0.00019452,2]
[370361874,1751980247360,-460.0,0.00019452,2]
[370361875,1751980247370,-460.0,0.00019452,2]
[370361876,1751980247379,-460.0,0.00019452,2]
[370361877,1751980247388,-722.7,0.00019452,2]
[370361878,1751980247398,-519.02,0.00019452,2]
[370361879,1751980247407,-867.48,0.00019452,2]
[370361880,1751980247416,-460.0,0.00019452,2]
[370361881,1751980247425,-460.9704665,0.00019452,2]
[370361882,1751980247435,-460.0,0.00019452,2]
[370361883,1751980247444,-460.0,0.00019452,2]
[370361884,1751980247452,-460.0,0.00019452,2]
[370361885,1751980247462,-1112.82,0.00019452,2]
[370361886,1751980247471,-460.0,0.00019452,2]
[370361887,1751980247480,-460.0,0.00019452,2]
[370361888,1751980247489,-460.0,0.00019452,2]
[370361889,1751980247498,-460.0,0.00019452,2]
[370361890,1751980247507,-460.0,0.00019452,2]
[370361891,1751980247517,-460.0,0.00019452,2]
[370361892,1751980247526,-460.0,0.00019452,2]
[370361893,1751980247536,-1145.56,0.00019452,2]
[370361894,1751980247545,-460.0,0.00019452,2]
[370361895,1751980247554,-460.0,0.00019452,2]
[370361896,1751980247562,-460.0,0.00019452,2]
[370361897,1751980247571,-460.0,0.00019452,2]
[370361898,1751980247580,-460.0,0.00019452,2]
[370361899,1751980247590,-692.45,0.00019452,2]
[370361900,1751980247599,-460.0,0.00019452,2]
[370361901,1751980247609,-460.0,0.00019452,2]
[370361902,1751980247619,-460.0,0.00019452,2]
[370361903,1751980247628,-460.0,0.00019452,2]
[370361904,1751980247637,-460.0,0.00019452,2]
[370361905,1751980247646,-460.0,0.00019452,2]
[370361906,1751980247655,-370.34897506,0.00019452,2]
[370361907,1751980247664,-460.0,0.00019452,2]
[370361908,1751980247673,-1153.15,0.00019452,2]
[370361909,1751980247683,-1196.26,0.00019452,2]
[370361910,1751980247693,-460.0,0.00019452,2]
[370361911,1751980247702,-460.0,0.00019452,2]
[370361912,1751980247711,-460.0,0.00019452,2]
[370361913,1751980247721,-675.01,0.00019452,2]
[370361914,1751980247730,-460.0,0.00019452,2]
[370361915,1751980247740,-460.0,0.00019452,2]
[370361916,1751980247749,-460.0,0.00019452,2]
[370361917,1751980247758,-531.44,0.00019452,2]
[370361918,1751980247767,-460.0,0.00019452,2]
[370361919,1751980247776,-460.0,0.00019452,2]
[370361920,1751980247786,-460.0,0.00019452,2]
[370361921,1751980247795,-462.17247759,0.00019452,2]
[370361922,1751980247804,-460.0,0.00019452,2]
[370361923,1751980247815,-460.0,0.00019452,2]
[370361924,1751980247830,-460.0,0.00019452,2]
[370361925,1751980247839,-460.0,0.00019452,2]
[370361926,1751980247848,-460.0,0.00019452,2]
[370361927,1751980247856,-460.0,0.00019452,2]
[370361928,1751980247866,-460.0,0.00019452,2]
[370361929,1751980247874,-2469.77,0.00019452,2]
[370361930,1751980247882,-460.0,0.00019452,2]
[370361931,1751980247891,-460.0,0.00019452,2]
[370361932,1751980247899,-1956.75,0.00019452,2]
[370361933,1751980247909,-460.0,0.00019452,2]
[370361934,1751980247918,-460.0,0.00019452,2]
[370361935,1751980247928,-460.0,0.00019452,2]
[370361936,1751980247938,-460.0,0.00019452,2]
[370361937,1751980247947,-460.0,0.00019452,2]
[370361938,1751980247957,-460.0,0.00019452,2]
[370361939,1751980247966,-460.0,0.00019452,2]
[370361940,1751980247976,-151.0,0.00019452,2]
[370361941,1751980247986,-151.0,0.00019452,2]